{"text_format":"1","workbook":"xlsx","n_sheets":2,"sheets":["Data","Help"],"not_rendered":{"charts":1,"images":0,"macros":1,"external_links":0,"defined_names":6,"comments":0,"pivot_tables":1},"unopened":[],"bounds":{"document_bytes":16777216,"sheet_cells":100000,"rows_first":2000,"rows_last":500,"rows_between":2000,"halvings":0,"cell_chars":16384,"cell_head_chars":4096},"cells_cut":0,"cells_raw":0,"read":"whole","date_system":"1900"}

{"sheet":"Data","index":0,"n_rows":74,"n_cols":15,"rows_kept":74,"cut":false,"hidden":false,"merged":[]}
[]
[]
[null,"Table1",null,null,null,null,"PivotTable1"]
[null,"DCode","Type","Desc","Qtys",null,"Sum of Qtys",null,"DCode"]
[null,{"$f":"INDEX(Table13[DCode],RANDBETWEEN(1,6))","v":"M137"},{"$f":"INDEX(Table13[Type],RANDBETWEEN(1,6))","v":"FAN"},{"$f":"INDEX(Table13[Desc],RANDBETWEEN(1,6))","v":"Wood"},{"$f":"RANDBETWEEN(10,99)","v":28},null,"Type","Desc","B166","H139","J955","M137","M500","N750","Grand Total"]
[null,{"$f":"INDEX(Table13[DCode],RANDBETWEEN(1,6))","v":"M500"},{"$f":"INDEX(Table13[Type],RANDBETWEEN(1,6))","v":"VUG"},{"$f":"INDEX(Table13[Desc],RANDBETWEEN(1,6))","v":"Morris"},45,null,"DOJ",null,120,70,289,49,154,47,729]
[null,{"$f":"INDEX(Table13[DCode],RANDBETWEEN(1,6))","v":"M137"},{"$f":"INDEX(Table13[Type],RANDBETWEEN(1,6))","v":"FAN"},{"$f":"INDEX(Table13[Desc],RANDBETWEEN(1,6))","v":"Price"},92,null,null,"James",36,0,59,0,74,47,216]
[null,{"$f":"INDEX(Table13[DCode],RANDBETWEEN(1,6))","v":"M137"},{"$f":"INDEX(Table13[Type],RANDBETWEEN(1,6))","v":"VUG"},{"$f":"INDEX(Table13[Desc],RANDBETWEEN(1,6))","v":"Jordan"},46,null,null,"Ramirez",0,56,0,0,80,0,136]
[null,{"$f":"INDEX(Table13[DCode],RANDBETWEEN(1,6))","v":"J955"},{"$f":"INDEX(Table13[Type],RANDBETWEEN(1,6))","v":"DOJ"},{"$f":"INDEX(Table13[Desc],RANDBETWEEN(1,6))","v":"Price"},17,null,null,"Wood",84,0,52,0,0,0,136]
[null,{"$f":"INDEX(Table13[DCode],RANDBETWEEN(1,6))","v":"H139"},{"$f":"INDEX(Table13[Type],RANDBETWEEN(1,6))","v":"GER"},{"$f":"INDEX(Table13[Desc],RANDBETWEEN(1,6))","v":"Wood"},63,null,null,"Morris",0,14,94,0,0,0,108]
[null,{"$f":"INDEX(Table13[DCode],RANDBETWEEN(1,6))","v":"B166"},{"$f":"INDEX(Table13[Type],RANDBETWEEN(1,6))","v":"FAR"},{"$f":"INDEX(Table13[Desc],RANDBETWEEN(1,6))","v":"Price"},86,null,null,"Price",0,0,84,0,0,0,84]
[null,{"$f":"INDEX(Table13[DCode],RANDBETWEEN(1,6))","v":"J955"},{"$f":"INDEX(Table13[Type],RANDBETWEEN(1,6))","v":"DOJ"},{"$f":"INDEX(Table13[Desc],RANDBETWEEN(1,6))","v":"Wood"},77,null,null,"Jordan",0,0,0,49,0,0,49]
[null,{"$f":"INDEX(Table13[DCode],RANDBETWEEN(1,6))","v":"N750"},{"$f":"INDEX(Table13[Type],RANDBETWEEN(1,6))","v":"JEG"},{"$f":"INDEX(Table13[Desc],RANDBETWEEN(1,6))","v":"Price"},46,null,"FAN",null,0,32,154,81,0,50,317]
[null,{"$f":"INDEX(Table13[DCode],RANDBETWEEN(1,6))","v":"B166"},{"$f":"INDEX(Table13[Type],RANDBETWEEN(1,6))","v":"FAR"},{"$f":"INDEX(Table13[Desc],RANDBETWEEN(1,6))","v":"Jordan"},58,null,null,"Jordan",0,0,85,81,0,0,166]
[null,{"$f":"INDEX(Table13[DCode],RANDBETWEEN(1,6))","v":"M500"},{"$f":"INDEX(Table13[Type],RANDBETWEEN(1,6))","v":"FAR"},{"$f":"INDEX(Table13[Desc],RANDBETWEEN(1,6))","v":"Ramirez"},11,null,null,"James",0,0,53,0,0,50,103]
[null,{"$f":"INDEX(Table13[DCode],RANDBETWEEN(1,6))","v":"B166"},{"$f":"INDEX(Table13[Type],RANDBETWEEN(1,6))","v":"GER"},{"$f":"INDEX(Table13[Desc],RANDBETWEEN(1,6))","v":"Jordan"},19,null,null,"Ramirez",0,32,16,0,0,0,48]
[null,{"$f":"INDEX(Table13[DCode],RANDBETWEEN(1,6))","v":"B166"},{"$f":"INDEX(Table13[Type],RANDBETWEEN(1,6))","v":"JEG"},{"$f":"INDEX(Table13[Desc],RANDBETWEEN(1,6))","v":"Wood"},17,null,"FAR",null,228,48,202,79,94,244,895]
[null,{"$f":"INDEX(Table13[DCode],RANDBETWEEN(1,6))","v":"M500"},{"$f":"INDEX(Table13[Type],RANDBETWEEN(1,6))","v":"DOJ"},{"$f":"INDEX(Table13[Desc],RANDBETWEEN(1,6))","v":"James"},73,null,null,"Jordan",62,0,94,21,0,145,322]
[null,{"$f":"INDEX(Table13[DCode],RANDBETWEEN(1,6))","v":"J955"},{"$f":"INDEX(Table13[Type],RANDBETWEEN(1,6))","v":"GER"},{"$f":"INDEX(Table13[Desc],RANDBETWEEN(1,6))","v":"Wood"},80,null,null,"Wood",33,0,0,0,94,71,198]
[null,{"$f":"INDEX(Table13[DCode],RANDBETWEEN(1,6))","v":"B166"},{"$f":"INDEX(Table13[Type],RANDBETWEEN(1,6))","v":"FAR"},{"$f":"INDEX(Table13[Desc],RANDBETWEEN(1,6))","v":"James"},24,null,null,"Ramirez",39,0,91,0,0,0,130]
[null,{"$f":"INDEX(Table13[DCode],RANDBETWEEN(1,6))","v":"M137"},{"$f":"INDEX(Table13[Type],RANDBETWEEN(1,6))","v":"GER"},{"$f":"INDEX(Table13[Desc],RANDBETWEEN(1,6))","v":"Morris"},82,null,null,"Morris",0,48,17,58,0,0,123]
[null,{"$f":"INDEX(Table13[DCode],RANDBETWEEN(1,6))","v":"M137"},{"$f":"INDEX(Table13[Type],RANDBETWEEN(1,6))","v":"FAN"},{"$f":"INDEX(Table13[Desc],RANDBETWEEN(1,6))","v":"Price"},51,null,null,"Price",94,0,0,0,0,28,122]
[null,{"$f":"INDEX(Table13[DCode],RANDBETWEEN(1,6))","v":"H139"},{"$f":"INDEX(Table13[Type],RANDBETWEEN(1,6))","v":"GER"},{"$f":"INDEX(Table13[Desc],RANDBETWEEN(1,6))","v":"Ramirez"},55,null,"GER",null,67,119,0,96,72,79,433]
[null,{"$f":"INDEX(Table13[DCode],RANDBETWEEN(1,6))","v":"B166"},{"$f":"INDEX(Table13[Type],RANDBETWEEN(1,6))","v":"GER"},{"$f":"INDEX(Table13[Desc],RANDBETWEEN(1,6))","v":"Jordan"},45,null,null,"Jordan",0,93,0,0,72,0,165]
[null,{"$f":"INDEX(Table13[DCode],RANDBETWEEN(1,6))","v":"H139"},{"$f":"INDEX(Table13[Type],RANDBETWEEN(1,6))","v":"VUG"},{"$f":"INDEX(Table13[Desc],RANDBETWEEN(1,6))","v":"Ramirez"},27,null,null,"Wood",67,0,0,96,0,0,163]
[null,{"$f":"INDEX(Table13[DCode],RANDBETWEEN(1,6))","v":"M500"},{"$f":"INDEX(Table13[Type],RANDBETWEEN(1,6))","v":"DOJ"},{"$f":"INDEX(Table13[Desc],RANDBETWEEN(1,6))","v":"Morris"},41,null,null,"Price",0,0,0,0,0,79,79]
[null,{"$f":"INDEX(Table13[DCode],RANDBETWEEN(1,6))","v":"H139"},{"$f":"INDEX(Table13[Type],RANDBETWEEN(1,6))","v":"DOJ"},{"$f":"INDEX(Table13[Desc],RANDBETWEEN(1,6))","v":"Ramirez"},18,null,null,"Morris",0,26,0,0,0,0,26]
[null,{"$f":"INDEX(Table13[DCode],RANDBETWEEN(1,6))","v":"J955"},{"$f":"INDEX(Table13[Type],RANDBETWEEN(1,6))","v":"FAN"},{"$f":"INDEX(Table13[Desc],RANDBETWEEN(1,6))","v":"Jordan"},26,null,"JEG",null,175,130,281,0,94,39,719]
[null,{"$f":"INDEX(Table13[DCode],RANDBETWEEN(1,6))","v":"M500"},{"$f":"INDEX(Table13[Type],RANDBETWEEN(1,6))","v":"FAR"},{"$f":"INDEX(Table13[Desc],RANDBETWEEN(1,6))","v":"Morris"},70,null,null,"Morris",0,0,176,0,94,0,270]
[null,{"$f":"INDEX(Table13[DCode],RANDBETWEEN(1,6))","v":"M500"},{"$f":"INDEX(Table13[Type],RANDBETWEEN(1,6))","v":"FAN"},{"$f":"INDEX(Table13[Desc],RANDBETWEEN(1,6))","v":"Morris"},53,null,null,"Ramirez",37,130,15,0,0,0,182]
[null,{"$f":"INDEX(Table13[DCode],RANDBETWEEN(1,6))","v":"B166"},{"$f":"INDEX(Table13[Type],RANDBETWEEN(1,6))","v":"FAN"},{"$f":"INDEX(Table13[Desc],RANDBETWEEN(1,6))","v":"Wood"},93,null,null,"James",87,0,90,0,0,0,177]
[null,{"$f":"INDEX(Table13[DCode],RANDBETWEEN(1,6))","v":"B166"},{"$f":"INDEX(Table13[Type],RANDBETWEEN(1,6))","v":"VUG"},{"$f":"INDEX(Table13[Desc],RANDBETWEEN(1,6))","v":"James"},67,null,null,"Price",51,0,0,0,0,39,90]
[null,{"$f":"INDEX(Table13[DCode],RANDBETWEEN(1,6))","v":"M500"},{"$f":"INDEX(Table13[Type],RANDBETWEEN(1,6))","v":"JEG"},{"$f":"INDEX(Table13[Desc],RANDBETWEEN(1,6))","v":"Jordan"},65,null,"VUG",null,310,201,43,26,288,227,1095]
[null,{"$f":"INDEX(Table13[DCode],RANDBETWEEN(1,6))","v":"J955"},{"$f":"INDEX(Table13[Type],RANDBETWEEN(1,6))","v":"JEG"},{"$f":"INDEX(Table13[Desc],RANDBETWEEN(1,6))","v":"Morris"},39,null,null,"Ramirez",128,50,0,0,87,87,352]
[null,{"$f":"INDEX(Table13[DCode],RANDBETWEEN(1,6))","v":"B166"},{"$f":"INDEX(Table13[Type],RANDBETWEEN(1,6))","v":"JEG"},{"$f":"INDEX(Table13[Desc],RANDBETWEEN(1,6))","v":"Morris"},91,null,null,"Price",71,0,0,26,103,0,200]
[null,{"$f":"INDEX(Table13[DCode],RANDBETWEEN(1,6))","v":"N750"},{"$f":"INDEX(Table13[Type],RANDBETWEEN(1,6))","v":"FAR"},{"$f":"INDEX(Table13[Desc],RANDBETWEEN(1,6))","v":"Ramirez"},20,null,null,"James",72,96,0,0,25,0,193]
[null,{"$f":"INDEX(Table13[DCode],RANDBETWEEN(1,6))","v":"N750"},{"$f":"INDEX(Table13[Type],RANDBETWEEN(1,6))","v":"DOJ"},{"$f":"INDEX(Table13[Desc],RANDBETWEEN(1,6))","v":"Jordan"},{"$f":"RANDBETWEEN(10,99)","v":82},null,null,"Morris",0,0,0,0,0,140,140]
[null,{"$f":"INDEX(Table13[DCode],RANDBETWEEN(1,6))","v":"N750"},{"$f":"INDEX(Table13[Type],RANDBETWEEN(1,6))","v":"DOJ"},{"$f":"INDEX(Table13[Desc],RANDBETWEEN(1,6))","v":"Price"},49,null,null,"Jordan",39,0,0,0,73,0,112]
[null,{"$f":"INDEX(Table13[DCode],RANDBETWEEN(1,6))","v":"B166"},{"$f":"INDEX(Table13[Type],RANDBETWEEN(1,6))","v":"DOJ"},{"$f":"INDEX(Table13[Desc],RANDBETWEEN(1,6))","v":"Ramirez"},20,null,null,"Wood",0,55,43,0,0,0,98]
[null,{"$f":"INDEX(Table13[DCode],RANDBETWEEN(1,6))","v":"B166"},{"$f":"INDEX(Table13[Type],RANDBETWEEN(1,6))","v":"VUG"},{"$f":"INDEX(Table13[Desc],RANDBETWEEN(1,6))","v":"Morris"},71,null,"Grand Total",null,900,600,969,331,702,686,4188]
[null,{"$f":"INDEX(Table13[DCode],RANDBETWEEN(1,6))","v":"N750"},{"$f":"INDEX(Table13[Type],RANDBETWEEN(1,6))","v":"FAR"},{"$f":"INDEX(Table13[Desc],RANDBETWEEN(1,6))","v":"Jordan"},20]
[null,{"$f":"INDEX(Table13[DCode],RANDBETWEEN(1,6))","v":"M137"},{"$f":"INDEX(Table13[Type],RANDBETWEEN(1,6))","v":"GER"},{"$f":"INDEX(Table13[Desc],RANDBETWEEN(1,6))","v":"James"},27]
[null,{"$f":"INDEX(Table13[DCode],RANDBETWEEN(1,6))","v":"B166"},{"$f":"INDEX(Table13[Type],RANDBETWEEN(1,6))","v":"FAR"},{"$f":"INDEX(Table13[Desc],RANDBETWEEN(1,6))","v":"Ramirez"},13]
[null,{"$f":"INDEX(Table13[DCode],RANDBETWEEN(1,6))","v":"M137"},{"$f":"INDEX(Table13[Type],RANDBETWEEN(1,6))","v":"FAN"},{"$f":"INDEX(Table13[Desc],RANDBETWEEN(1,6))","v":"Jordan"},28]
[null,{"$f":"INDEX(Table13[DCode],RANDBETWEEN(1,6))","v":"N750"},{"$f":"INDEX(Table13[Type],RANDBETWEEN(1,6))","v":"JEG"},{"$f":"INDEX(Table13[Desc],RANDBETWEEN(1,6))","v":"James"},42]
[null,{"$f":"INDEX(Table13[DCode],RANDBETWEEN(1,6))","v":"M137"},{"$f":"INDEX(Table13[Type],RANDBETWEEN(1,6))","v":"DOJ"},{"$f":"INDEX(Table13[Desc],RANDBETWEEN(1,6))","v":"Morris"},31]
[null,{"$f":"INDEX(Table13[DCode],RANDBETWEEN(1,6))","v":"M137"},{"$f":"INDEX(Table13[Type],RANDBETWEEN(1,6))","v":"JEG"},{"$f":"INDEX(Table13[Desc],RANDBETWEEN(1,6))","v":"James"},92]
[null,{"$f":"INDEX(Table13[DCode],RANDBETWEEN(1,6))","v":"N750"},{"$f":"INDEX(Table13[Type],RANDBETWEEN(1,6))","v":"JEG"},{"$f":"INDEX(Table13[Desc],RANDBETWEEN(1,6))","v":"James"},40]
[null,{"$f":"INDEX(Table13[DCode],RANDBETWEEN(1,6))","v":"J955"},{"$f":"INDEX(Table13[Type],RANDBETWEEN(1,6))","v":"FAN"},{"$f":"INDEX(Table13[Desc],RANDBETWEEN(1,6))","v":"Ramirez"},67]
[null,{"$f":"INDEX(Table13[DCode],RANDBETWEEN(1,6))","v":"M137"},{"$f":"INDEX(Table13[Type],RANDBETWEEN(1,6))","v":"FAR"},{"$f":"INDEX(Table13[Desc],RANDBETWEEN(1,6))","v":"Wood"},31]
[null,{"$f":"INDEX(Table13[DCode],RANDBETWEEN(1,6))","v":"H139"},{"$f":"INDEX(Table13[Type],RANDBETWEEN(1,6))","v":"GER"},{"$f":"INDEX(Table13[Desc],RANDBETWEEN(1,6))","v":"Jordan"},98]
[null,{"$f":"INDEX(Table13[DCode],RANDBETWEEN(1,6))","v":"H139"},{"$f":"INDEX(Table13[Type],RANDBETWEEN(1,6))","v":"VUG"},{"$f":"INDEX(Table13[Desc],RANDBETWEEN(1,6))","v":"Wood"},52]
[null,{"$f":"INDEX(Table13[DCode],RANDBETWEEN(1,6))","v":"J955"},{"$f":"INDEX(Table13[Type],RANDBETWEEN(1,6))","v":"JEG"},{"$f":"INDEX(Table13[Desc],RANDBETWEEN(1,6))","v":"Ramirez"},97]
[null,{"$f":"INDEX(Table13[DCode],RANDBETWEEN(1,6))","v":"J955"},{"$f":"INDEX(Table13[Type],RANDBETWEEN(1,6))","v":"FAR"},{"$f":"INDEX(Table13[Desc],RANDBETWEEN(1,6))","v":"Price"},64]
[null,{"$f":"INDEX(Table13[DCode],RANDBETWEEN(1,6))","v":"J955"},{"$f":"INDEX(Table13[Type],RANDBETWEEN(1,6))","v":"FAN"},{"$f":"INDEX(Table13[Desc],RANDBETWEEN(1,6))","v":"Ramirez"},88]
[null,{"$f":"INDEX(Table13[DCode],RANDBETWEEN(1,6))","v":"N750"},{"$f":"INDEX(Table13[Type],RANDBETWEEN(1,6))","v":"DOJ"},{"$f":"INDEX(Table13[Desc],RANDBETWEEN(1,6))","v":"Jordan"},61]
[null,{"$f":"INDEX(Table13[DCode],RANDBETWEEN(1,6))","v":"J955"},{"$f":"INDEX(Table13[Type],RANDBETWEEN(1,6))","v":"GER"},{"$f":"INDEX(Table13[Desc],RANDBETWEEN(1,6))","v":"Morris"},23]
[null,{"$f":"INDEX(Table13[DCode],RANDBETWEEN(1,6))","v":"M137"},{"$f":"INDEX(Table13[Type],RANDBETWEEN(1,6))","v":"JEG"},{"$f":"INDEX(Table13[Desc],RANDBETWEEN(1,6))","v":"Price"},31]
[null,{"$f":"INDEX(Table13[DCode],RANDBETWEEN(1,6))","v":"M137"},{"$f":"INDEX(Table13[Type],RANDBETWEEN(1,6))","v":"DOJ"},{"$f":"INDEX(Table13[Desc],RANDBETWEEN(1,6))","v":"James"},10]
[null,{"$f":"INDEX(Table13[DCode],RANDBETWEEN(1,6))","v":"J955"},{"$f":"INDEX(Table13[Type],RANDBETWEEN(1,6))","v":"DOJ"},{"$f":"INDEX(Table13[Desc],RANDBETWEEN(1,6))","v":"Ramirez"},47]
[null,{"$f":"INDEX(Table13[DCode],RANDBETWEEN(1,6))","v":"J955"},{"$f":"INDEX(Table13[Type],RANDBETWEEN(1,6))","v":"DOJ"},{"$f":"INDEX(Table13[Desc],RANDBETWEEN(1,6))","v":"Morris"},14]
[null,{"$f":"INDEX(Table13[DCode],RANDBETWEEN(1,6))","v":"M500"},{"$f":"INDEX(Table13[Type],RANDBETWEEN(1,6))","v":"FAN"},{"$f":"INDEX(Table13[Desc],RANDBETWEEN(1,6))","v":"Wood"},92]
[null,{"$f":"INDEX(Table13[DCode],RANDBETWEEN(1,6))","v":"J955"},{"$f":"INDEX(Table13[Type],RANDBETWEEN(1,6))","v":"FAN"},{"$f":"INDEX(Table13[Desc],RANDBETWEEN(1,6))","v":"Jordan"},32]
[null,{"$f":"INDEX(Table13[DCode],RANDBETWEEN(1,6))","v":"B166"},{"$f":"INDEX(Table13[Type],RANDBETWEEN(1,6))","v":"FAN"},{"$f":"INDEX(Table13[Desc],RANDBETWEEN(1,6))","v":"Jordan"},55]
[null,{"$f":"INDEX(Table13[DCode],RANDBETWEEN(1,6))","v":"H139"},{"$f":"INDEX(Table13[Type],RANDBETWEEN(1,6))","v":"FAN"},{"$f":"INDEX(Table13[Desc],RANDBETWEEN(1,6))","v":"James"},89]
[null,{"$f":"INDEX(Table13[DCode],RANDBETWEEN(1,6))","v":"M137"},{"$f":"INDEX(Table13[Type],RANDBETWEEN(1,6))","v":"FAN"},{"$f":"INDEX(Table13[Desc],RANDBETWEEN(1,6))","v":"Wood"},99]
[null,{"$f":"INDEX(Table13[DCode],RANDBETWEEN(1,6))","v":"M500"},{"$f":"INDEX(Table13[Type],RANDBETWEEN(1,6))","v":"GER"},{"$f":"INDEX(Table13[Desc],RANDBETWEEN(1,6))","v":"Ramirez"},62]
[null,{"$f":"INDEX(Table13[DCode],RANDBETWEEN(1,6))","v":"M137"},{"$f":"INDEX(Table13[Type],RANDBETWEEN(1,6))","v":"DOJ"},{"$f":"INDEX(Table13[Desc],RANDBETWEEN(1,6))","v":"James"},32]
[null,{"$f":"INDEX(Table13[DCode],RANDBETWEEN(1,6))","v":"H139"},{"$f":"INDEX(Table13[Type],RANDBETWEEN(1,6))","v":"FAN"},{"$f":"INDEX(Table13[Desc],RANDBETWEEN(1,6))","v":"Morris"},{"$f":"RANDBETWEEN(10,99)","v":65}]
[null,{"$f":"INDEX(Table13[DCode],RANDBETWEEN(1,6))","v":"M137"},{"$f":"INDEX(Table13[Type],RANDBETWEEN(1,6))","v":"FAR"},{"$f":"INDEX(Table13[Desc],RANDBETWEEN(1,6))","v":"Ramirez"},97]
[null,{"$f":"INDEX(Table13[DCode],RANDBETWEEN(1,6))","v":"J955"},{"$f":"INDEX(Table13[Type],RANDBETWEEN(1,6))","v":"JEG"},{"$f":"INDEX(Table13[Desc],RANDBETWEEN(1,6))","v":"James"},72]
[null,{"$f":"INDEX(Table13[DCode],RANDBETWEEN(1,6))","v":"M500"},{"$f":"INDEX(Table13[Type],RANDBETWEEN(1,6))","v":"GER"},{"$f":"INDEX(Table13[Desc],RANDBETWEEN(1,6))","v":"Price"},53]
[null,{"$f":"INDEX(Table13[DCode],RANDBETWEEN(1,6))","v":"B166"},{"$f":"INDEX(Table13[Type],RANDBETWEEN(1,6))","v":"DOJ"},{"$f":"INDEX(Table13[Desc],RANDBETWEEN(1,6))","v":"Ramirez"},29]
[null,{"$f":"INDEX(Table13[DCode],RANDBETWEEN(1,6))","v":"N750"},{"$f":"INDEX(Table13[Type],RANDBETWEEN(1,6))","v":"JEG"},{"$f":"INDEX(Table13[Desc],RANDBETWEEN(1,6))","v":"Ramirez"},57]

{"sheet":"Help","index":1,"n_rows":9,"n_cols":14,"rows_kept":9,"cut":false,"hidden":false,"merged":[]}
[]
[]
[null,null,null,null,null,null,null,null,null,null,null,"DCode","Type","Desc"]
[null,null,null,null,null,null,null,null,null,null,null,"M500","JEG","Jordan"]
[null,null,null,null,null,null,null,null,null,null,null,"B166","FAR","Morris"]
[null,null,null,null,null,null,null,null,null,null,null,"J955","FAN","Price"]
[null,null,null,null,null,null,null,null,null,null,null,"H139","DOJ","Wood"]
[null,null,null,null,null,null,null,null,null,null,null,"M137","VUG","Ramirez"]
[null,null,null,null,null,null,null,null,null,null,null,"N750","GER","James"]